[Event "*** SCC Grand Prix: Titled Tuesday Blitz"]
[Site "Chess.com"]
[Date "2020.07.14"]
[Round "9"]
[White "Sueetin"]
[Black "PawnEatingZombie"]
[Result "0-1"]
[WhiteElo "2325"]
[BlackElo "2233"]
[TimeControl "180+1"]
[EndTime "11:47:09 PDT"]
[Termination "PawnEatingZombie won on time"]

1. d4 {[%clk 0:03:00.9]} 1... d5 {[%clk 0:02:59.6]} 2. Nf3 {[%clk 0:03:00.4]}
2... e6 {[%clk 0:02:59.3]} 3. c4 {[%clk 0:03:00.3]} 3... dxc4 {[%clk 0:03:00.2]}
4. e3 {[%clk 0:03:00.2]} 4... b5 {[%clk 0:03:00.7]} 5. a4 {[%clk 0:02:59.2]}
5... c6 {[%clk 0:03:01.3]} 6. axb5 {[%clk 0:02:55.5]} 6... cxb5 {[%clk
0:03:02.2]} 7. b3 {[%clk 0:02:55.8]} 7... Bb4+ {[%clk 0:03:02.6]} 8. Bd2 {[%clk
0:02:52.7]} 8... Bxd2+ {[%clk 0:03:03.1]} 9. Nbxd2 {[%clk 0:02:44.7]} 9... a5
{[%clk 0:02:59.5]} 10. bxc4 {[%clk 0:02:40.5]} 10... b4 {[%clk 0:02:59.8]} 11.
Bd3 {[%clk 0:02:38.3]} 11... Nf6 {[%clk 0:02:58.9]} 12. O-O {[%clk 0:02:37.4]}
12... O-O {[%clk 0:02:58.1]} 13. Nb3 {[%clk 0:02:33.4]} 13... Nbd7 {[%clk
0:02:44.8]} 14. c5 {[%clk 0:02:06.8]} 14... Bb7 {[%clk 0:02:38.4]} 15. Bb5
{[%clk 0:01:59.3]} 15... Qc7 {[%clk 0:02:32.8]} 16. c6 {[%clk 0:01:54.1]} 16...
Bxc6 {[%clk 0:02:24.1]} 17. Bxc6 {[%clk 0:01:47.4]} 17... Qxc6 {[%clk
0:02:22.6]} 18. Nxa5 {[%clk 0:01:44.3]} 18... Qb5 {[%clk 0:02:16.3]} 19. Nb3
{[%clk 0:01:40.1]} 19... Ra3 {[%clk 0:02:08.1]} 20. Nfd2 {[%clk 0:01:32.6]}
20... Rfa8 {[%clk 0:02:04.5]} 21. Rc1 {[%clk 0:01:30.2]} 21... Nd5 {[%clk
0:01:55.6]} 22. Qf3 {[%clk 0:01:25.3]} 22... Nc3 {[%clk 0:01:50.1]} 23. Rfe1
{[%clk 0:01:19.9]} 23... h6 {[%clk 0:01:41.3]} 24. h3 {[%clk 0:01:18.8]} 24...
Ra2 {[%clk 0:01:34]} 25. e4 {[%clk 0:01:09.2]} 25... Rb2 {[%clk 0:01:19.1]} 26.
d5 {[%clk 0:01:00.8]} 26... Ne5 {[%clk 0:01:00.9]} 27. Qg3 {[%clk 0:00:54.1]}
27... Nd3 {[%clk 0:00:58.2]} 28. dxe6 {[%clk 0:00:51]} 28... fxe6 {[%clk
0:00:56.8]} 29. Nd4 {[%clk 0:00:48.7]} 29... Nxc1 {[%clk 0:00:51.3]} 30. Qg6
{[%clk 0:00:19.5]} 30... Qd7 {[%clk 0:00:41.7]} 31. N2f3 {[%clk 0:00:14.3]}
31... N1e2+ {[%clk 0:00:23.8]} 32. Kh1 {[%clk 0:00:10.5]} 32... Nxd4 {[%clk
0:00:20.6]} 33. Nxd4 {[%clk 0:00:06.3]} 33... Qxd4 {[%clk 0:00:18.2]} 34. Qxe6+
{[%clk 0:00:06.3]} 34... Kh8 {[%clk 0:00:18.1]} 35. Qf7 {[%clk 0:00:04.6]} 35...
Qxf2 {[%clk 0:00:13.7]} 0-1

[Event "*** SCC Grand Prix: Titled Tuesday Blitz"]
[Site "Chess.com"]
[Date "2020.07.14"]
[Round "9"]
[White "Hikaru"]
[Black "GadimbayliA"]
[Result "1-0"]
[WhiteElo "3192"]
[BlackElo "2878"]
[TimeControl "180+1"]
[EndTime "11:47:10 PDT"]
[Termination "Hikaru won on time"]

1. Nf3 {[%clk 0:03:00.9]} 1... d5 {[%clk 0:02:58.7]} 2. e3 {[%clk 0:03:00.1]}
2... Nf6 {[%clk 0:02:57.2]} 3. c4 {[%clk 0:02:59.6]} 3... c6 {[%clk 0:02:57.4]}
4. d4 {[%clk 0:02:59.1]} 4... g6 {[%clk 0:02:56.8]} 5. Nbd2 {[%clk 0:02:56.2]}
5... Bg7 {[%clk 0:02:55.8]} 6. b3 {[%clk 0:02:56.5]} 6... O-O {[%clk 0:02:56.1]}
7. Bb2 {[%clk 0:02:57.2]} 7... b6 {[%clk 0:02:56.4]} 8. Bd3 {[%clk 0:02:57.2]}
8... Bb7 {[%clk 0:02:56.9]} 9. O-O {[%clk 0:02:57.4]} 9... Nbd7 {[%clk
0:02:57.3]} 10. cxd5 {[%clk 0:02:57.8]} 10... cxd5 {[%clk 0:02:57.4]} 11. Qe2
{[%clk 0:02:55.6]} 11... e6 {[%clk 0:02:56]} 12. a4 {[%clk 0:02:54.7]} 12... Nb8
{[%clk 0:02:52.4]} 13. Ba3 {[%clk 0:02:48.5]} 13... Re8 {[%clk 0:02:52.3]} 14.
Bb5 {[%clk 0:02:48.8]} 14... Nfd7 {[%clk 0:02:44.2]} 15. e4 {[%clk 0:02:43.9]}
15... a6 {[%clk 0:02:41.6]} 16. Bd3 {[%clk 0:02:43.7]} 16... Nc6 {[%clk
0:02:38.7]} 17. Bb2 {[%clk 0:02:35.5]} 17... Nb4 {[%clk 0:02:38]} 18. e5 {[%clk
0:02:31.4]} 18... Nxd3 {[%clk 0:02:35.2]} 19. Qxd3 {[%clk 0:02:32.3]} 19... Nb8
{[%clk 0:02:36]} 20. b4 {[%clk 0:02:29.1]} 20... Nc6 {[%clk 0:02:35]} 21. b5
{[%clk 0:02:29.7]} 21... axb5 {[%clk 0:02:05.2]} 22. axb5 {[%clk 0:02:30.6]}
22... Na5 {[%clk 0:02:05.8]} 23. Ba3 {[%clk 0:02:19.9]} 23... Qd7 {[%clk
0:02:03.2]} 24. Bd6 {[%clk 0:02:09.6]} 24... Rec8 {[%clk 0:01:49.3]} 25. Rac1
{[%clk 0:02:03.2]} 25... Nc4 {[%clk 0:01:33.8]} 26. Nxc4 {[%clk 0:02:02.3]}
26... Qxb5 {[%clk 0:01:28.3]} 27. Nb2 {[%clk 0:01:58.4]} 27... Qxb2 {[%clk
0:01:28.1]} 28. Rb1 {[%clk 0:01:58.7]} 28... Qa2 {[%clk 0:01:24.5]} 29. Qe3
{[%clk 0:01:55.4]} 29... Ba6 {[%clk 0:01:08.8]} 30. Rfe1 {[%clk 0:01:52.4]}
30... Qa5 {[%clk 0:00:56.7]} 31. h4 {[%clk 0:01:47.4]} 31... b5 {[%clk
0:00:24.5]} 32. h5 {[%clk 0:01:43.2]} 32... Bb7 {[%clk 0:00:20.1]} 33. h6 {[%clk
0:01:39.6]} 33... Bh8 {[%clk 0:00:17.1]} 34. Bc5 {[%clk 0:01:33.2]} 34... Bc6
{[%clk 0:00:16.1]} 35. g4 {[%clk 0:01:31.7]} 35... Qd8 {[%clk 0:00:15.7]} 36. g5
{[%clk 0:01:31.5]} 36... Ra4 {[%clk 0:00:15.2]} 37. Rb3 {[%clk 0:01:30]} 37...
Rca8 {[%clk 0:00:15.3]} 38. Reb1 {[%clk 0:01:30.1]} 38... Qa5 {[%clk 0:00:14.7]}
39. Kg2 {[%clk 0:01:27.6]} 39... Qc7 {[%clk 0:00:11.9]} 40. Nh2 {[%clk
0:01:22.6]} 40... Rc4 {[%clk 0:00:10.3]} 41. Bd6 {[%clk 0:01:18.5]} 41... Qd8
{[%clk 0:00:06.5]} 42. Rd3 {[%clk 0:01:17.2]} 42... Raa4 {[%clk 0:00:06]} 43.
Ng4 {[%clk 0:01:16.3]} 43... b4 {[%clk 0:00:05.1]} 44. Rdb3 {[%clk 0:01:16.3]}
44... Qa5 {[%clk 0:00:05.4]} 45. Qf4 {[%clk 0:01:14.8]} 45... Qd8 {[%clk
0:00:03.9]} 46. Rxb4 {[%clk 0:01:09.7]} 46... Raxb4 {[%clk 0:00:03.5]} 47. Bxb4
{[%clk 0:01:10.3]} 47... Ba4 {[%clk 0:00:02.9]} 48. Bd6 {[%clk 0:01:09.9]} 48...
Bc2 {[%clk 0:00:03.2]} 49. Rb8 {[%clk 0:01:09.3]} 49... Rc8 {[%clk 0:00:03.8]}
50. Rxc8 {[%clk 0:01:08.8]} 50... Qxc8 {[%clk 0:00:04.7]} 51. Nf6+ {[%clk
0:01:09.4]} 51... Bxf6 {[%clk 0:00:04.7]} 52. Qxf6 {[%clk 0:01:10.3]} 52... Be4+
{[%clk 0:00:03.4]} 53. Kh2 {[%clk 0:01:10.4]} 1-0

[Event "*** SCC Grand Prix: Titled Tuesday Blitz"]
[Site "Chess.com"]
[Date "2020.07.14"]
[Round "9"]
[White "Oligan22"]
[Black "RobertoJBM"]
[Result "0-1"]
[WhiteElo "2457"]
[BlackElo "2623"]
[TimeControl "180+1"]
[EndTime "11:47:10 PDT"]
[Termination "RobertoJBM won on time"]

1. e4 {[%clk 0:03:00.9]} 1... c6 {[%clk 0:03:00.1]} 2. Nf3 {[%clk 0:02:59.3]}
2... d5 {[%clk 0:03:01]} 3. Nc3 {[%clk 0:02:59.6]} 3... dxe4 {[%clk 0:03:01.6]}
4. Nxe4 {[%clk 0:02:59.9]} 4... Bg4 {[%clk 0:03:02.2]} 5. h3 {[%clk 0:02:57.6]}
5... Bxf3 {[%clk 0:03:02.5]} 6. Qxf3 {[%clk 0:02:58.5]} 6... Nd7 {[%clk
0:03:03.1]} 7. d4 {[%clk 0:02:49.4]} 7... Ndf6 {[%clk 0:03:02.9]} 8. c3 {[%clk
0:02:45.3]} 8... Nxe4 {[%clk 0:03:02.6]} 9. Qxe4 {[%clk 0:02:46.2]} 9... Nf6
{[%clk 0:03:03.4]} 10. Qf3 {[%clk 0:02:46.5]} 10... Qd5 {[%clk 0:03:03.5]} 11.
Qxd5 {[%clk 0:02:44.3]} 11... Nxd5 {[%clk 0:03:04.4]} 12. Be2 {[%clk 0:02:40.6]}
12... e6 {[%clk 0:03:04.4]} 13. O-O {[%clk 0:02:32.4]} 13... Bd6 {[%clk
0:03:04.2]} 14. Rd1 {[%clk 0:02:25.9]} 14... O-O-O {[%clk 0:03:03.8]} 15. a3
{[%clk 0:02:21.4]} 15... Rd7 {[%clk 0:03:03.4]} 16. Be3 {[%clk 0:02:11.1]} 16...
Bf4 {[%clk 0:02:56.2]} 17. Rd3 {[%clk 0:01:50.4]} 17... Bxe3 {[%clk 0:02:48.7]}
18. fxe3 {[%clk 0:01:51.3]} 18... f5 {[%clk 0:02:48.2]} 19. Bf3 {[%clk
0:01:40.4]} 19... Rhd8 {[%clk 0:02:43.9]} 20. Kf2 {[%clk 0:01:40.4]} 20... g6
{[%clk 0:02:43]} 21. Rdd1 {[%clk 0:01:21.5]} 21... Nf6 {[%clk 0:02:42]} 22. b4
{[%clk 0:01:04.3]} 22... Kc7 {[%clk 0:02:41.5]} 23. a4 {[%clk 0:00:59.8]} 23...
a6 {[%clk 0:02:37.1]} 24. c4 {[%clk 0:00:54.9]} 24... Kd6 {[%clk 0:02:31.6]} 25.
b5 {[%clk 0:00:52.4]} 25... axb5 {[%clk 0:02:31.3]} 26. axb5 {[%clk 0:00:43.3]}
26... c5 {[%clk 0:02:30.9]} 27. b6 {[%clk 0:00:33.2]} 27... e5 {[%clk
0:02:04.5]} 28. dxe5+ {[%clk 0:00:18.7]} 28... Kxe5 {[%clk 0:02:04.1]} 29. Rxd7
{[%clk 0:00:19.3]} 29... Rxd7 {[%clk 0:01:58.3]} 30. Ra7 {[%clk 0:00:18.1]}
30... Ne4+ {[%clk 0:01:53.5]} 31. Bxe4 {[%clk 0:00:18.3]} 31... fxe4 {[%clk
0:01:54.4]} 32. Ke2 {[%clk 0:00:18.1]} 32... Kd6 {[%clk 0:01:53.6]} 33. Ra8
{[%clk 0:00:16.9]} 33... Kc6 {[%clk 0:01:53.4]} 34. Re8 {[%clk 0:00:17.5]} 34...
Kxb6 {[%clk 0:01:51]} 35. Rxe4 {[%clk 0:00:17.7]} 35... Ka5 {[%clk 0:01:51.6]}
36. h4 {[%clk 0:00:12.9]} 36... Kb4 {[%clk 0:01:51.1]} 37. g4 {[%clk 0:00:13.3]}
37... b5 {[%clk 0:01:44.6]} 38. cxb5+ {[%clk 0:00:14.2]} 38... c4 {[%clk
0:01:44.4]} 39. b6 {[%clk 0:00:12.2]} 39... Kc5 {[%clk 0:01:40.3]} 40. Re6
{[%clk 0:00:10.1]} 40... Rb7 {[%clk 0:01:38.4]} 41. Re8 {[%clk 0:00:10.7]} 41...
Rxb6 {[%clk 0:01:38]} 42. Rc8+ {[%clk 0:00:08.7]} 42... Rc6 {[%clk 0:01:37.9]}
43. Rh8 {[%clk 0:00:08.9]} 43... Rc7 {[%clk 0:01:30.1]} 44. Kd2 {[%clk
0:00:08.5]} 44... Kd5 {[%clk 0:01:30.5]} 45. Re8 {[%clk 0:00:06.5]} 45... c3+
{[%clk 0:01:28.3]} 46. Kc2 {[%clk 0:00:06.1]} 46... Rc4 {[%clk 0:01:28.8]} 47.
h5 {[%clk 0:00:05.7]} 47... g5 {[%clk 0:01:26.2]} 48. Re7 {[%clk 0:00:04.2]}
48... Rxg4 {[%clk 0:01:24.1]} 49. Kxc3 {[%clk 0:00:05.1]} 49... h6 {[%clk
0:01:20.3]} 50. Rh7 {[%clk 0:00:04.2]} 50... Rc4+ {[%clk 0:01:18.5]} 51. Kd3
{[%clk 0:00:03.9]} 51... Rc6 {[%clk 0:01:19.4]} 52. Rf7 {[%clk 0:00:03.9]} 52...
Ke5 {[%clk 0:01:19.2]} 53. Rf8 {[%clk 0:00:04.2]} 53... Ra6 {[%clk 0:01:16.5]}
54. Ke2 {[%clk 0:00:04]} 54... g4 {[%clk 0:01:12.8]} 55. Rg8 {[%clk 0:00:04.1]}
55... Ra2+ {[%clk 0:01:12.4]} 56. Kf1 {[%clk 0:00:04.5]} 56... Ke4 {[%clk
0:01:11.1]} 57. Rg6 {[%clk 0:00:05]} 57... Kxe3 {[%clk 0:01:10.3]} 58. Rxg4
{[%clk 0:00:05]} 58... Kf3 {[%clk 0:01:10.5]} 0-1

[Event "*** SCC Grand Prix: Titled Tuesday Blitz"]
[Site "Chess.com"]
[Date "2020.07.14"]
[Round "9"]
[White "OparinGrigoriy"]
[Black "tigra"]
[Result "1-0"]
[WhiteElo "2930"]
[BlackElo "2839"]
[TimeControl "180+1"]
[EndTime "11:47:12 PDT"]
[Termination "OparinGrigoriy won on time"]

1. Nf3 {[%clk 0:03:00.9]} 1... c5 {[%clk 0:02:56.1]} 2. c4 {[%clk 0:03:00.7]}
2... Nf6 {[%clk 0:02:55.2]} 3. d4 {[%clk 0:03:01.1]} 3... cxd4 {[%clk
0:02:54.3]} 4. Nxd4 {[%clk 0:03:02]} 4... d5 {[%clk 0:02:46.8]} 5. cxd5 {[%clk
0:03:00.8]} 5... Nxd5 {[%clk 0:02:46.7]} 6. Bd2 {[%clk 0:03:01.5]} 6... g6
{[%clk 0:02:43.4]} 7. Nc3 {[%clk 0:02:52.9]} 7... Bg7 {[%clk 0:02:39.1]} 8. Ndb5
{[%clk 0:02:51.9]} 8... Nxc3 {[%clk 0:02:07.6]} 9. Bxc3 {[%clk 0:02:52.8]} 9...
Bxc3+ {[%clk 0:02:07.4]} 10. Nxc3 {[%clk 0:02:51.7]} 10... O-O {[%clk
0:02:00.6]} 11. g3 {[%clk 0:02:43]} 11... Nc6 {[%clk 0:01:57.9]} 12. Bg2 {[%clk
0:02:42.9]} 12... Qb6 {[%clk 0:01:54.8]} 13. Qc1 {[%clk 0:02:31.4]} 13... Be6
{[%clk 0:01:50.3]} 14. h4 {[%clk 0:02:29]} 14... f6 {[%clk 0:01:48.2]} 15. O-O
{[%clk 0:02:20.9]} 15... Rfd8 {[%clk 0:01:32.6]} 16. Re1 {[%clk 0:01:42.9]}
16... Rac8 {[%clk 0:01:26.4]} 17. h5 {[%clk 0:01:15.1]} 17... Nd4 {[%clk
0:01:14.9]} 18. hxg6 {[%clk 0:01:11.9]} 18... hxg6 {[%clk 0:01:13.8]} 19. Qh6
{[%clk 0:01:12.4]} 19... Bf7 {[%clk 0:01:09]} 20. Rab1 {[%clk 0:00:41.4]} 20...
f5 {[%clk 0:00:42.8]} 21. e4 {[%clk 0:00:37.4]} 21... Nc2 {[%clk 0:00:21.2]} 22.
Rf1 {[%clk 0:00:29.1]} 22... Nd4 {[%clk 0:00:20.4]} 23. exf5 {[%clk 0:00:25.4]}
23... Nxf5 {[%clk 0:00:20]} 24. Qg5 {[%clk 0:00:26]} 24... Rc7 {[%clk
0:00:14.7]} 25. Ne4 {[%clk 0:00:24]} 25... Kg7 {[%clk 0:00:10.6]} 26. g4 {[%clk
0:00:19]} 26... Nd4 {[%clk 0:00:07.6]} 27. Qe5+ {[%clk 0:00:19.2]} 27... Kg8
{[%clk 0:00:07.7]} 28. Ng5 {[%clk 0:00:17]} 28... Qd6 {[%clk 0:00:07.1]} 29. Qe3
{[%clk 0:00:14.1]} 29... Bd5 {[%clk 0:00:05.7]} 30. Qxd4 {[%clk 0:00:12.7]}
30... Rc4 {[%clk 0:00:02.4]} 31. Qxd5+ {[%clk 0:00:11.5]} 31... Qxd5 {[%clk
0:00:03]} 32. Bxd5+ {[%clk 0:00:12.4]} 32... Rxd5 {[%clk 0:00:03.7]} 33. f4
{[%clk 0:00:11.3]} 33... e5 {[%clk 0:00:02.9]} 34. Rbe1 {[%clk 0:00:08.6]} 34...
exf4 {[%clk 0:00:02.4]} 35. Nf3 {[%clk 0:00:08.8]} 1-0

[Event "*** SCC Grand Prix: Titled Tuesday Blitz"]
[Site "Chess.com"]
[Date "2020.07.14"]
[Round "9"]
[White "Joseacorrea"]
[Black "MVM2008"]
[Result "1/2-1/2"]
[WhiteElo "1972"]
[BlackElo "2215"]
[TimeControl "180+1"]
[EndTime "11:47:12 PDT"]
[Termination "Game drawn - insufficient material"]

1. c4 {[%clk 0:03:00.9]} 1... Nf6 {[%clk 0:02:58.3]} 2. Nc3 {[%clk 0:03:01.1]}
2... d5 {[%clk 0:02:58.2]} 3. cxd5 {[%clk 0:03:00.7]} 3... Nxd5 {[%clk
0:02:59.1]} 4. e4 {[%clk 0:03:01.6]} 4... Nxc3 {[%clk 0:02:58.8]} 5. bxc3 {[%clk
0:03:02.5]} 5... g6 {[%clk 0:02:59.2]} 6. d4 {[%clk 0:03:02.5]} 6... Bg7 {[%clk
0:02:59.3]} 7. Nf3 {[%clk 0:03:02]} 7... O-O {[%clk 0:02:58.8]} 8. Be3 {[%clk
0:02:59.3]} 8... c5 {[%clk 0:02:58.9]} 9. Rb1 {[%clk 0:02:58]} 9... Nc6 {[%clk
0:02:57.9]} 10. Bb5 {[%clk 0:02:50.2]} 10... cxd4 {[%clk 0:02:56.1]} 11. cxd4
{[%clk 0:02:46.7]} 11... Bg4 {[%clk 0:02:47.3]} 12. Bxc6 {[%clk 0:02:40.9]}
12... bxc6 {[%clk 0:02:45.8]} 13. h3 {[%clk 0:02:37.4]} 13... Bxf3 {[%clk
0:02:41.6]} 14. gxf3 {[%clk 0:02:35.1]} 14... Qa5+ {[%clk 0:02:39.6]} 15. Qd2
{[%clk 0:02:34.6]} 15... Qxd2+ {[%clk 0:02:36.1]} 16. Kxd2 {[%clk 0:02:35.5]}
16... Rad8 {[%clk 0:02:34.9]} 17. Rb7 {[%clk 0:02:15.5]} 17... Bxd4 {[%clk
0:02:32.8]} 18. Bxd4 {[%clk 0:02:09.1]} 18... Rxd4+ {[%clk 0:02:33.7]} 19. Ke3
{[%clk 0:02:08.4]} 19... Ra4 {[%clk 0:02:32.5]} 20. Ra1 {[%clk 0:01:57.4]} 20...
e5 {[%clk 0:02:25.7]} 21. Rc7 {[%clk 0:01:55.6]} 21... Rc4 {[%clk 0:02:02.1]}
22. Rxa7 {[%clk 0:01:52.8]} 22... f5 {[%clk 0:02:01.9]} 23. Re7 {[%clk
0:01:43.4]} 23... fxe4 {[%clk 0:01:30.9]} 24. fxe4 {[%clk 0:01:36]} 24... Rc3+
{[%clk 0:01:30.3]} 25. Ke2 {[%clk 0:01:34.9]} 25... Rc2+ {[%clk 0:01:24.4]} 26.
Kd3 {[%clk 0:01:30.8]} 26... Rcxf2 {[%clk 0:01:21]} 27. Rxe5 {[%clk 0:01:28.9]}
27... R8f3+ {[%clk 0:01:16.3]} 28. Kd4 {[%clk 0:01:26.4]} 28... Rxh3 {[%clk
0:01:07.3]} 29. a4 {[%clk 0:01:26]} 29... Rd2+ {[%clk 0:01:03.7]} 30. Kc5 {[%clk
0:01:20.3]} 30... Rc3+ {[%clk 0:01:03.1]} 31. Kb6 {[%clk 0:01:20]} 31... Rb2+
{[%clk 0:01:01]} 32. Kc7 {[%clk 0:01:19]} 32... Kf7 {[%clk 0:00:45.2]} 33. a5
{[%clk 0:01:18.9]} 33... Rb5 {[%clk 0:00:32]} 34. Rxb5 {[%clk 0:01:16.2]} 34...
cxb5+ {[%clk 0:00:32.9]} 35. Kb6 {[%clk 0:01:16.6]} 35... Rc8 {[%clk 0:00:18.1]}
36. Kxb5 {[%clk 0:01:15.7]} 36... Kf6 {[%clk 0:00:18.1]} 37. a6 {[%clk
0:01:14.6]} 37... Ke5 {[%clk 0:00:17.1]} 38. Rh1 {[%clk 0:01:00]} 38... Kxe4
{[%clk 0:00:12.5]} 39. Rxh7 {[%clk 0:00:59]} 39... g5 {[%clk 0:00:09.5]} 40. a7
{[%clk 0:00:58.8]} 40... g4 {[%clk 0:00:08.1]} 41. Kb6 {[%clk 0:00:58.2]} 41...
g3 {[%clk 0:00:05.7]} 42. Rg7 {[%clk 0:00:57.3]} 42... Kf3 {[%clk 0:00:05.7]}
43. Kb7 {[%clk 0:00:57]} 43... Rf8 {[%clk 0:00:05.1]} 44. a8=Q {[%clk
0:00:53.3]} 44... Rxa8 {[%clk 0:00:04.4]} 45. Kxa8 {[%clk 0:00:54.2]} 45... g2
{[%clk 0:00:04.6]} 46. Kb7 {[%clk 0:00:54.1]} 46... Kf2 {[%clk 0:00:04.2]} 47.
Rf7+ {[%clk 0:00:53.8]} 47... Kg3 {[%clk 0:00:04.2]} 48. Rg7+ {[%clk 0:00:53.9]}
48... Kh2 {[%clk 0:00:04.6]} 49. Rh7+ {[%clk 0:00:53.6]} 49... Kg3 {[%clk
0:00:05]} 50. Rg7+ {[%clk 0:00:53.9]} 50... Kh2 {[%clk 0:00:05.4]} 51. Kc6
{[%clk 0:00:53.6]} 51... g1=Q {[%clk 0:00:05.1]} 52. Rxg1 {[%clk 0:00:54.1]}
52... Kxg1 {[%clk 0:00:06]} 1/2-1/2

[Event "*** SCC Grand Prix: Titled Tuesday Blitz"]
[Site "Chess.com"]
[Date "2020.07.14"]
[Round "9"]
[White "viktorskliarov"]
[Black "Gabrielian_Artur"]
[Result "1-0"]
[WhiteElo "2618"]
[BlackElo "2794"]
[TimeControl "180+1"]
[EndTime "11:47:14 PDT"]
[Termination "viktorskliarov won on time"]

1. e4 {[%clk 0:03:00.9]} 1... c5 {[%clk 0:02:59.6]} 2. Nf3 {[%clk 0:02:59.7]}
2... d6 {[%clk 0:02:59.6]} 3. d4 {[%clk 0:02:59.4]} 3... cxd4 {[%clk 0:02:59.9]}
4. Qxd4 {[%clk 0:02:59.3]} 4... Nc6 {[%clk 0:02:59.7]} 5. Bb5 {[%clk 0:02:59.2]}
5... Bd7 {[%clk 0:02:59.9]} 6. Bxc6 {[%clk 0:02:59.3]} 6... Bxc6 {[%clk
0:03:00.8]} 7. Nc3 {[%clk 0:02:59.3]} 7... Nf6 {[%clk 0:03:00.6]} 8. Bg5 {[%clk
0:02:59.1]} 8... e6 {[%clk 0:03:00.8]} 9. O-O-O {[%clk 0:02:59]} 9... Be7 {[%clk
0:03:01.1]} 10. Rhe1 {[%clk 0:02:59]} 10... O-O {[%clk 0:02:52.6]} 11. Kb1
{[%clk 0:02:58.6]} 11... h6 {[%clk 0:02:51.7]} 12. Bh4 {[%clk 0:02:58.3]} 12...
Re8 {[%clk 0:02:51.2]} 13. Bg3 {[%clk 0:02:58.2]} 13... d5 {[%clk 0:02:28.6]}
14. e5 {[%clk 0:02:57.4]} 14... Ne4 {[%clk 0:02:22.6]} 15. Nxe4 {[%clk
0:02:57.4]} 15... dxe4 {[%clk 0:02:22.4]} 16. Qe3 {[%clk 0:02:57.6]} 16... Qa5
{[%clk 0:02:12.5]} 17. Nd2 {[%clk 0:02:46.9]} 17... Bg5 {[%clk 0:00:31]} 18. Bf4
{[%clk 0:02:28.5]} 18... Bxf4 {[%clk 0:00:30.2]} 19. Qxf4 {[%clk 0:02:28.5]}
19... Bd5 {[%clk 0:00:27.9]} 20. c4 {[%clk 0:02:22.4]} 20... Bc6 {[%clk
0:00:26.5]} 21. Nxe4 {[%clk 0:02:22.6]} 21... Red8 {[%clk 0:00:23.5]} 22. Nd6
{[%clk 0:02:18.7]} 22... Rd7 {[%clk 0:00:22.2]} 23. Re3 {[%clk 0:02:18]} 23...
Rad8 {[%clk 0:00:18.2]} 24. Rg3 {[%clk 0:02:14.4]} 24... Kf8 {[%clk 0:00:14.3]}
25. b3 {[%clk 0:01:27.1]} 25... Qc5 {[%clk 0:00:13.8]} 26. Kb2 {[%clk
0:01:23.6]} 26... a5 {[%clk 0:00:13.9]} 27. Qd4 {[%clk 0:01:14.7]} 27... Qxd4+
{[%clk 0:00:13.1]} 28. Rxd4 {[%clk 0:01:14.2]} 28... b6 {[%clk 0:00:13.6]} 29.
f4 {[%clk 0:01:10.6]} 29... f6 {[%clk 0:00:12.5]} 30. Rd2 {[%clk 0:01:03.6]}
30... h5 {[%clk 0:00:09.8]} 31. Rgd3 {[%clk 0:00:59]} 31... Ke7 {[%clk
0:00:09.2]} 32. Kc3 {[%clk 0:00:55.6]} 32... Rf8 {[%clk 0:00:07.2]} 33. a3
{[%clk 0:00:50.7]} 33... fxe5 {[%clk 0:00:06.7]} 34. fxe5 {[%clk 0:00:50.6]}
34... Rf1 {[%clk 0:00:07.2]} 35. Nc8+ {[%clk 0:00:50]} 35... Ke8 {[%clk
0:00:05.5]} 36. Rxd7 {[%clk 0:00:45.8]} 36... Bxd7 {[%clk 0:00:05.9]} 37. Nxb6
{[%clk 0:00:46.3]} 37... Bc6 {[%clk 0:00:06.4]} 38. b4 {[%clk 0:00:43]} 38...
axb4+ {[%clk 0:00:06.1]} 39. axb4 {[%clk 0:00:43.1]} 39... Rc1+ {[%clk
0:00:05.2]} 40. Kd4 {[%clk 0:00:43.2]} 40... Re1 {[%clk 0:00:04.8]} 41. Kc5
{[%clk 0:00:40.7]} 41... Be4 {[%clk 0:00:02.4]} 42. Kd6 {[%clk 0:00:40.1]} 42...
Bf5 {[%clk 0:00:02.2]} 43. c5 {[%clk 0:00:38.7]} 43... Rb1 {[%clk 0:00:01.4]}
44. Rd4 {[%clk 0:00:34.1]} 1-0

[Event "*** SCC Grand Prix: Titled Tuesday Blitz"]
[Site "Chess.com"]
[Date "2020.07.14"]
[Round "9"]
[White "doons21"]
[Black "Lenyas66"]
[Result "1-0"]
[WhiteElo "2651"]
[BlackElo "2500"]
[TimeControl "180+1"]
[EndTime "11:47:14 PDT"]
[Termination "doons21 won on time"]

1. e4 {[%clk 0:03:00.9]} 1... e6 {[%clk 0:00:59]} 2. d3 {[%clk 0:03:00.3]} 2...
d5 {[%clk 0:00:58.8]} 3. Nd2 {[%clk 0:03:00.6]} 3... c5 {[%clk 0:00:58.6]} 4.
Ngf3 {[%clk 0:03:00.9]} 4... Nc6 {[%clk 0:00:58.8]} 5. g3 {[%clk 0:02:59.7]}
5... g6 {[%clk 0:00:59]} 6. Bg2 {[%clk 0:02:59.6]} 6... Bg7 {[%clk 0:00:59.4]}
7. O-O {[%clk 0:03:00.2]} 7... Nge7 {[%clk 0:00:59.6]} 8. Re1 {[%clk 0:02:51.4]}
8... O-O {[%clk 0:00:58.9]} 9. c3 {[%clk 0:02:51.1]} 9... d4 {[%clk 0:00:53]}
10. cxd4 {[%clk 0:02:30.2]} 10... cxd4 {[%clk 0:00:52.5]} 11. Rb1 {[%clk
0:02:11.7]} 11... a5 {[%clk 0:00:39.6]} 12. a4 {[%clk 0:02:10.9]} 12... Nb4
{[%clk 0:00:24.4]} 13. Nc4 {[%clk 0:02:10]} 13... Nec6 {[%clk 0:00:21.9]} 14.
Bf4 {[%clk 0:01:39.8]} 14... f6 {[%clk 0:00:21.8]} 15. e5 {[%clk 0:01:37.3]}
15... g5 {[%clk 0:00:21.5]} 16. exf6 {[%clk 0:01:37.7]} 16... Bxf6 {[%clk
0:00:21.4]} 17. Bc1 {[%clk 0:01:09.7]} 17... h6 {[%clk 0:00:20.6]} 18. Nfe5
{[%clk 0:00:59]} 18... Nxe5 {[%clk 0:00:20.1]} 19. Nxe5 {[%clk 0:00:59.1]} 19...
Qc7 {[%clk 0:00:19.7]} 20. Nc4 {[%clk 0:00:54.9]} 20... Rf7 {[%clk 0:00:16.7]}
21. Be4 {[%clk 0:00:54.6]} 21... Bd7 {[%clk 0:00:14.3]} 22. Bd2 {[%clk
0:00:51.7]} 22... Raf8 {[%clk 0:00:12.2]} 23. b3 {[%clk 0:00:41]} 23... Bg7
{[%clk 0:00:12.3]} 24. Rf1 {[%clk 0:00:41]} 24... Bc6 {[%clk 0:00:12.5]} 25. Qe2
{[%clk 0:00:37.6]} 25... Bxe4 {[%clk 0:00:11.6]} 26. Qxe4 {[%clk 0:00:38.5]}
26... Qc6 {[%clk 0:00:11.2]} 27. Bxb4 {[%clk 0:00:32]} 27... Qxe4 {[%clk
0:00:10.2]} 28. dxe4 {[%clk 0:00:32.7]} 28... axb4 {[%clk 0:00:10.5]} 29. e5
{[%clk 0:00:20.6]} 29... Rf3 {[%clk 0:00:10.1]} 30. Kg2 {[%clk 0:00:21.1]} 30...
Rc3 {[%clk 0:00:08.9]} 31. Rfd1 {[%clk 0:00:18.6]} 31... d3 {[%clk 0:00:08.9]}
32. Rd2 {[%clk 0:00:17.7]} 32... Rd8 {[%clk 0:00:08.2]} 33. Na5 {[%clk
0:00:16.9]} 33... b6 {[%clk 0:00:06.6]} 34. Nc4 {[%clk 0:00:16.9]} 34... Rd5
{[%clk 0:00:05.7]} 35. f4 {[%clk 0:00:16.4]} 35... gxf4 {[%clk 0:00:05.3]} 36.
gxf4 {[%clk 0:00:17.3]} 36... Rd4 {[%clk 0:00:04.4]} 37. Kf3 {[%clk 0:00:17.7]}
37... h5 {[%clk 0:00:04.2]} 38. Rg1 {[%clk 0:00:17.8]} 38... Kh7 {[%clk
0:00:01.8]} 39. Ke3 {[%clk 0:00:18.2]} 39... Bh6 {[%clk 0:00:01.5]} 40. Kxd4
{[%clk 0:00:17.8]} 1-0